[Event "Betsys MČR v online bleskovém šachu 2021"]
[Site "Chess.com"]
[Date "2021.04.17"]
[Round "6"]
[White "VildaSt"]
[Black "Sorcercream"]
[Result "0-1"]
[WhiteElo "1290"]
[BlackElo "1215"]
[TimeControl "180+1"]
[EndTime "9:57:24 PDT"]
[Termination "Uživatel Sorcercream zvítězil matem"]

1. e4 {[%clk 0:03:00.9]} 1... e5 {[%clk 0:02:57]} 2. Nf3 {[%clk 0:03:00.8]} 2...
Nc6 {[%clk 0:02:56.9]} 3. d4 {[%clk 0:03:00.7]} 3... exd4 {[%clk 0:02:56.2]} 4.
Nxd4 {[%clk 0:03:00.7]} 4... Bc5 {[%clk 0:02:54.9]} 5. Be3 {[%clk 0:03:00.6]}
5... Qf6 {[%clk 0:02:44.7]} 6. c3 {[%clk 0:03:00.2]} 6... Bb6 {[%clk 0:02:42.3]}
7. b4 {[%clk 0:02:58.4]} 7... d6 {[%clk 0:02:38.4]} 8. a4 {[%clk 0:02:58.1]}
8... a6 {[%clk 0:02:37.7]} 9. Na3 {[%clk 0:02:49.7]} 9... Be6 {[%clk 0:02:23.4]}
10. Nc4 {[%clk 0:02:45.1]} 10... Ba7 {[%clk 0:02:21.9]} 11. b5 {[%clk
0:02:39.8]} 11... axb5 {[%clk 0:02:21.2]} 12. axb5 {[%clk 0:02:39.8]} 12... Nge7
{[%clk 0:02:17.5]} 13. bxc6 {[%clk 0:02:30.3]} 13... Nxc6 {[%clk 0:02:07.8]} 14.
Nxc6 {[%clk 0:02:29.5]} 14... Qxc3+ {[%clk 0:01:56.4]} 15. Bd2 {[%clk
0:02:25.8]} 15... Bxf2+ {[%clk 0:01:51.3]} 16. Kxf2 {[%clk 0:02:18.9]} 16...
Qxa1 {[%clk 0:01:41.8]} 17. Qxa1 {[%clk 0:02:10.8]} 17... Rxa1 {[%clk
0:01:42.1]} 18. N6a5 {[%clk 0:02:01.4]} 18... b6 {[%clk 0:01:29.4]} 19. Nb3
{[%clk 0:01:54.6]} 19... Rxf1+ {[%clk 0:01:19.9]} 20. Rxf1 {[%clk 0:01:52.9]}
20... Bxc4 {[%clk 0:01:20]} 21. Nd4 {[%clk 0:01:48.4]} 21... Bxf1 {[%clk
0:01:17.8]} 22. Kxf1 {[%clk 0:01:47.3]} 22... Kd7 {[%clk 0:01:17]} 23. Nf5
{[%clk 0:01:46.3]} 23... g6 {[%clk 0:01:14.1]} 24. Ne3 {[%clk 0:01:40.3]} 24...
Ke6 {[%clk 0:01:12.8]} 25. Bc3 {[%clk 0:01:40.3]} 25... Ra8 {[%clk 0:01:10.3]}
26. Kf2 {[%clk 0:01:37.7]} 26... Ra2+ {[%clk 0:01:07.1]} 27. Kf3 {[%clk
0:01:36.2]} 27... f5 {[%clk 0:00:58.9]} 28. exf5+ {[%clk 0:01:35]} 28... gxf5
{[%clk 0:00:59.8]} 29. Bg7 {[%clk 0:01:33.9]} 29... h5 {[%clk 0:00:55]} 30. h3
{[%clk 0:01:33.5]} 30... Ra4 {[%clk 0:00:53.6]} 31. Bh6 {[%clk 0:01:30.5]} 31...
b5 {[%clk 0:00:49]} 32. Bf4 {[%clk 0:01:30.1]} 32... b4 {[%clk 0:00:46.9]} 33.
g4 {[%clk 0:01:27.1]} 33... fxg4+ {[%clk 0:00:44.6]} 34. hxg4 {[%clk 0:01:26.5]}
34... hxg4+ {[%clk 0:00:44.8]} 35. Kxg4 {[%clk 0:01:26.7]} 35... b3 {[%clk
0:00:44.7]} 36. Nd1 {[%clk 0:01:24.9]} 36... Rd4 {[%clk 0:00:43.5]} 37. Nb2
{[%clk 0:01:23.2]} 37... c5 {[%clk 0:00:40.3]} 38. Kf3 {[%clk 0:01:23.2]} 38...
Kd5 {[%clk 0:00:36.2]} 39. Be3 {[%clk 0:01:23.2]} 39... Rh4 {[%clk 0:00:28.5]}
40. Kg3 {[%clk 0:01:21]} 40... Re4 {[%clk 0:00:26.7]} 41. Kf3 {[%clk 0:01:20]}
41... c4 {[%clk 0:00:23]} 42. Bd2 {[%clk 0:01:15.4]} 42... Kd4 {[%clk
0:00:20.3]} 43. Ba5 {[%clk 0:01:13]} 43... c3 {[%clk 0:00:18.6]} 44. Bxc3+
{[%clk 0:01:11.5]} 44... Kxc3 {[%clk 0:00:18.9]} 45. Na4+ {[%clk 0:01:11.4]}
45... Rxa4 {[%clk 0:00:17.7]} 46. Ke2 {[%clk 0:01:10]} 46... b2 {[%clk
0:00:17.9]} 47. Ke3 {[%clk 0:01:09.8]} 47... b1=Q {[%clk 0:00:17.3]} 48. Kf3
{[%clk 0:01:09.9]} 48... Qe1 {[%clk 0:00:16.3]} 49. Kg2 {[%clk 0:01:08]} 49...
Kd3 {[%clk 0:00:15.3]} 50. Kf3 {[%clk 0:01:07.1]} 50... Qf1+ {[%clk 0:00:14.4]}
51. Kg3 {[%clk 0:01:06.3]} 51... Ke3 {[%clk 0:00:14.7]} 52. Kh2 {[%clk
0:01:05.4]} 52... Qf4+ {[%clk 0:00:12.1]} 53. Kg1 {[%clk 0:01:04.8]} 53... Ra1+
{[%clk 0:00:11.3]} 54. Kg2 {[%clk 0:01:01.8]} 54... Qf3+ {[%clk 0:00:09]} 55.
Kh2 {[%clk 0:01:01.7]} 55... Rh1# {[%clk 0:00:09.2]} 0-1

[Event "Betsys MČR v online bleskovém šachu 2021"]
[Site "Chess.com"]
[Date "2021.04.17"]
[Round "6"]
[White "marfuss"]
[Black "honzasoucek"]
[Result "1-0"]
[WhiteElo "2032"]
[BlackElo "1625"]
[TimeControl "180+1"]
[EndTime "9:57:26 PDT"]
[Termination "Uživatel marfuss zvítězil na čas"]

1. d4 {[%clk 0:03:00.9]} 1... d5 {[%clk 0:02:58.7]} 2. Bf4 {[%clk 0:02:59.3]}
2... Nf6 {[%clk 0:02:56.9]} 3. e3 {[%clk 0:02:59.4]} 3... e6 {[%clk 0:02:56.8]}
4. Nf3 {[%clk 0:02:59.1]} 4... c5 {[%clk 0:02:56.7]} 5. c3 {[%clk 0:02:58.9]}
5... Nc6 {[%clk 0:02:56.6]} 6. Nbd2 {[%clk 0:02:57]} 6... Qb6 {[%clk 0:02:53.4]}
7. Qb3 {[%clk 0:02:53.1]} 7... c4 {[%clk 0:02:52.3]} 8. Qc2 {[%clk 0:02:53.3]}
8... Be7 {[%clk 0:02:48.1]} 9. Be2 {[%clk 0:02:49.3]} 9... O-O {[%clk
0:02:47.5]} 10. Ne5 {[%clk 0:02:49.3]} 10... a5 {[%clk 0:02:43.1]} 11. a4 {[%clk
0:02:45.5]} 11... Qa6 {[%clk 0:02:40.8]} 12. Ndf3 {[%clk 0:02:42.2]} 12... b5
{[%clk 0:02:38]} 13. axb5 {[%clk 0:02:33.8]} 13... Qxb5 {[%clk 0:02:37.7]} 14.
Qa4 {[%clk 0:02:26.9]} 14... Qxa4 {[%clk 0:02:28.1]} 15. Rxa4 {[%clk 0:02:27.8]}
15... Bd7 {[%clk 0:02:18.7]} 16. Nxd7 {[%clk 0:02:10]} 16... Nxd7 {[%clk
0:02:17.1]} 17. Kd2 {[%clk 0:02:06.8]} 17... Nb6 {[%clk 0:02:08.7]} 18. Ra2
{[%clk 0:02:03.9]} 18... a4 {[%clk 0:02:05.5]} 19. Rha1 {[%clk 0:02:00.4]} 19...
Na5 {[%clk 0:02:02.6]} 20. Bd1 {[%clk 0:01:53.1]} 20... Nb3+ {[%clk 0:01:55.7]}
21. Bxb3 {[%clk 0:01:43.9]} 21... cxb3 {[%clk 0:01:56]} 22. Ra3 {[%clk
0:01:44.4]} 22... Nc4+ {[%clk 0:01:56.1]} 23. Kd3 {[%clk 0:01:41.4]} 23... Bxa3
{[%clk 0:01:54.7]} 24. bxa3 {[%clk 0:01:41.7]} 24... b2 {[%clk 0:01:53]} 25. Rb1
{[%clk 0:01:40.5]} 25... Ra7 {[%clk 0:01:47.5]} 26. Nd2 {[%clk 0:01:33.9]} 26...
Nxa3 {[%clk 0:00:14.5]} 27. Rxb2 {[%clk 0:01:33.7]} 27... f6 {[%clk 0:00:13.1]}
28. Bd6 {[%clk 0:01:32.8]} 28... Nc4 {[%clk 0:00:11.1]} 29. Nxc4 {[%clk
0:01:30.2]} 29... dxc4+ {[%clk 0:00:10.9]} 30. Kxc4 {[%clk 0:01:29.7]} 30...
Rc8+ {[%clk 0:00:11.2]} 31. Kd3 {[%clk 0:01:24.8]} 31... a3 {[%clk 0:00:10.8]}
32. Ra2 {[%clk 0:01:25.4]} 32... Kf7 {[%clk 0:00:10.2]} 33. Rxa3 {[%clk
0:01:24.6]} 33... Rxa3 {[%clk 0:00:09.1]} 34. Bxa3 {[%clk 0:01:25.5]} 34... Ra8
{[%clk 0:00:09]} 35. Bc1 {[%clk 0:01:11.1]} 35... Ra2 {[%clk 0:00:08.3]} 36. Bd2
{[%clk 0:01:11.5]} 36... Ra1 {[%clk 0:00:08.1]} 37. c4 {[%clk 0:01:11.1]} 37...
Rh1 {[%clk 0:00:07.8]} 38. g3 {[%clk 0:00:56.3]} 38... Rxh2 {[%clk 0:00:07.2]}
39. Ke2 {[%clk 0:00:56.9]} 39... Rh1 {[%clk 0:00:06.8]} 40. Kf3 {[%clk
0:00:52.6]} 40... Rd1 {[%clk 0:00:06.1]} 41. Ba5 {[%clk 0:00:50.8]} 41... Ra1
{[%clk 0:00:03.1]} 42. Bb6 {[%clk 0:00:50.6]} 42... Ke7 {[%clk 0:00:01.2]} 43.
c5 {[%clk 0:00:48.7]} 43... Kd7 {[%clk 0:00:01.6]} 44. Ke4 {[%clk 0:00:47.9]}
44... Kc6 {[%clk 0:00:01.7]} 45. f4 {[%clk 0:00:45]} 1-0

[Event "Betsys MČR v online bleskovém šachu 2021"]
[Site "Chess.com"]
[Date "2021.04.17"]
[Round "6"]
[White "Paulz64"]
[Black "jachym08"]
[Result "0-1"]
[WhiteElo "2479"]
[BlackElo "2210"]
[TimeControl "180+1"]
[EndTime "9:57:27 PDT"]
[Termination "Uživatel jachym08 zvítězil matem"]

1. d4 {[%clk 0:03:00.9]} 1... Nf6 {[%clk 0:02:57]} 2. c4 {[%clk 0:03:01.3]} 2...
g6 {[%clk 0:02:55.9]} 3. Nc3 {[%clk 0:03:00.8]} 3... d5 {[%clk 0:02:55.3]} 4.
Bg5 {[%clk 0:03:01.3]} 4... Ne4 {[%clk 0:02:53.8]} 5. Nxe4 {[%clk 0:03:01.4]}
5... dxe4 {[%clk 0:02:53.1]} 6. Qd2 {[%clk 0:03:02.3]} 6... Bg7 {[%clk
0:02:50.4]} 7. e3 {[%clk 0:03:02.5]} 7... c5 {[%clk 0:02:50.4]} 8. d5 {[%clk
0:03:02.4]} 8... Qb6 {[%clk 0:02:50.6]} 9. Rb1 {[%clk 0:03:02.5]} 9... Nd7
{[%clk 0:02:49.8]} 10. Ne2 {[%clk 0:03:02.4]} 10... Ne5 {[%clk 0:02:47.9]} 11.
Nc3 {[%clk 0:03:02.5]} 11... Bf5 {[%clk 0:02:42.9]} 12. Be2 {[%clk 0:03:02.4]}
12... h6 {[%clk 0:02:42]} 13. Bh4 {[%clk 0:03:01.9]} 13... g5 {[%clk 0:02:29.5]}
14. Bg3 {[%clk 0:03:01.4]} 14... Bg6 {[%clk 0:02:29.9]} 15. O-O {[%clk
0:02:45.8]} 15... O-O {[%clk 0:02:19]} 16. Na4 {[%clk 0:02:30.5]} 16... Qc7
{[%clk 0:02:03.1]} 17. a3 {[%clk 0:02:30.3]} 17... f5 {[%clk 0:01:56.4]} 18. Kh1
{[%clk 0:02:22.9]} 18... Rad8 {[%clk 0:01:43.8]} 19. Rbc1 {[%clk 0:02:11.4]}
19... b6 {[%clk 0:01:37.6]} 20. b4 {[%clk 0:02:11.2]} 20... Qd7 {[%clk
0:01:34.4]} 21. Nc3 {[%clk 0:01:59.2]} 21... Nf7 {[%clk 0:01:12.5]} 22. bxc5
{[%clk 0:01:53.4]} 22... bxc5 {[%clk 0:01:12.2]} 23. Rb1 {[%clk 0:01:25.7]}
23... Nd6 {[%clk 0:01:11.4]} 24. Rb3 {[%clk 0:01:15.2]} 24... Rf7 {[%clk
0:00:53]} 25. Rfb1 {[%clk 0:01:12.4]} 25... Rdf8 {[%clk 0:00:52.2]} 26. Bxd6
{[%clk 0:01:03.4]} 26... exd6 {[%clk 0:00:50.1]} 27. h3 {[%clk 0:00:58.7]} 27...
f4 {[%clk 0:00:48.2]} 28. Bg4 {[%clk 0:00:58.3]} 28... Bf5 {[%clk 0:00:48]} 29.
Bxf5 {[%clk 0:00:36.7]} 29... Qxf5 {[%clk 0:00:48.9]} 30. Nb5 {[%clk 0:00:31.9]}
30... Be5 {[%clk 0:00:46.8]} 31. Qe2 {[%clk 0:00:27.4]} 31... f3 {[%clk
0:00:44.7]} 32. Qf1 {[%clk 0:00:25.8]} 32... fxg2+ {[%clk 0:00:43.5]} 33. Qxg2
{[%clk 0:00:25.9]} 33... Qxf2 {[%clk 0:00:43.4]} 34. Qxf2 {[%clk 0:00:18.3]}
34... Rxf2 {[%clk 0:00:44.3]} 35. Nxa7 {[%clk 0:00:17.8]} 35... Rh2+ {[%clk
0:00:41.3]} 36. Kg1 {[%clk 0:00:17.4]} 36... Rxh3 {[%clk 0:00:39.8]} 37. Rb7
{[%clk 0:00:17.6]} 37... Rff3 {[%clk 0:00:30.2]} 38. Rd7 {[%clk 0:00:16.9]}
38... Rfg3+ {[%clk 0:00:29.4]} 39. Kf2 {[%clk 0:00:16.6]} 39... Rh2+ {[%clk
0:00:29.3]} 40. Kf1 {[%clk 0:00:15.7]} 40... Rh1+ {[%clk 0:00:29.2]} 41. Kf2
{[%clk 0:00:16]} 41... Rxb1 {[%clk 0:00:29.8]} 42. Nc6 {[%clk 0:00:16.6]} 42...
Rb2+ {[%clk 0:00:29.5]} 43. Kf1 {[%clk 0:00:17]} 43... Rf3+ {[%clk 0:00:29.3]}
44. Kg1 {[%clk 0:00:16.1]} 44... Bh2+ {[%clk 0:00:28.6]} 45. Kh1 {[%clk
0:00:15.5]} 45... Rf1# {[%clk 0:00:29.3]} 0-1

[Event "Betsys MČR v online bleskovém šachu 2021"]
[Site "Chess.com"]
[Date "2021.04.17"]
[Round "6"]
[White "fm_magua"]
[Black "VojtechPlat"]
[Result "0-1"]
[WhiteElo "2520"]
[BlackElo "2861"]
[TimeControl "180+1"]
[EndTime "9:57:28 PDT"]
[Termination "Uživatel VojtechPlat zvítězil po vzdání soupeře"]

1. e4 {[%clk 0:03:00.9]} 1... c5 {[%clk 0:02:59.8]} 2. Nf3 {[%clk 0:03:01.2]}
2... Nc6 {[%clk 0:03:00.2]} 3. d4 {[%clk 0:03:01.8]} 3... cxd4 {[%clk
0:03:00.6]} 4. Nxd4 {[%clk 0:03:02.7]} 4... e5 {[%clk 0:03:00.8]} 5. Nb5 {[%clk
0:03:02.5]} 5... a6 {[%clk 0:03:00.4]} 6. N5c3 {[%clk 0:03:02.5]} 6... Nf6
{[%clk 0:03:00.1]} 7. Bg5 {[%clk 0:03:02.2]} 7... Be7 {[%clk 0:02:55.3]} 8. Bxf6
{[%clk 0:03:02.1]} 8... Bxf6 {[%clk 0:02:54.7]} 9. Nd5 {[%clk 0:03:02.8]} 9...
Bg5 {[%clk 0:02:54.5]} 10. Bc4 {[%clk 0:03:02.6]} 10... d6 {[%clk 0:02:53.3]}
11. O-O {[%clk 0:03:02.4]} 11... Be6 {[%clk 0:02:52.9]} 12. Nbc3 {[%clk
0:03:02.3]} 12... O-O {[%clk 0:02:52.4]} 13. a4 {[%clk 0:03:02.2]} 13... Nd4
{[%clk 0:02:51.4]} 14. Ne2 {[%clk 0:03:00.4]} 14... Rc8 {[%clk 0:02:44.2]} 15.
Nxd4 {[%clk 0:02:58.6]} 15... Rxc4 {[%clk 0:02:43.3]} 16. Nxe6 {[%clk
0:02:43.9]} 16... fxe6 {[%clk 0:02:43.1]} 17. Nc3 {[%clk 0:02:42]} 17... Rd4
{[%clk 0:02:32.8]} 18. Qg4 {[%clk 0:02:40.1]} 18... Qf6 {[%clk 0:02:29.6]} 19.
Rad1 {[%clk 0:02:35.3]} 19... Rc8 {[%clk 0:02:07.5]} 20. Rxd4 {[%clk 0:02:27.2]}
20... exd4 {[%clk 0:02:07.1]} 21. Ne2 {[%clk 0:02:27.9]} 21... Rxc2 {[%clk
0:01:54.1]} 22. Nxd4 {[%clk 0:02:27.7]} 22... Qxd4 {[%clk 0:01:48.7]} 23. Qxg5
{[%clk 0:02:27.6]} 23... Rc8 {[%clk 0:01:45.6]} 24. Qe7 {[%clk 0:02:24.2]} 24...
Qxe4 {[%clk 0:01:40]} 25. h3 {[%clk 0:02:08.8]} 25... Qd5 {[%clk 0:01:37.8]} 26.
Re1 {[%clk 0:01:51.4]} 26... e5 {[%clk 0:01:37.2]} 27. Re3 {[%clk 0:01:51.5]}
27... Rf8 {[%clk 0:01:31.8]} 28. Rg3 {[%clk 0:01:26]} 28... g6 {[%clk
0:01:31.1]} 29. Rf3 {[%clk 0:01:17.4]} 29... Rxf3 {[%clk 0:01:29.9]} 30. gxf3
{[%clk 0:01:17.8]} 30... Qxf3 {[%clk 0:01:23.6]} 31. Qxd6 {[%clk 0:01:14.7]}
31... Qe4 {[%clk 0:01:05.6]} 32. Qf6 {[%clk 0:01:03.6]} 32... Qd5 {[%clk
0:00:56]} 33. Qe7 {[%clk 0:00:50.5]} 33... e4 {[%clk 0:00:48.9]} 34. h4 {[%clk
0:00:51]} 34... Qd1+ {[%clk 0:00:46.6]} 35. Kh2 {[%clk 0:00:49.4]} 35... Qf3
{[%clk 0:00:45.6]} 36. Qe8+ {[%clk 0:00:46.9]} 36... Qf8 {[%clk 0:00:45.2]} 37.
Qxe4 {[%clk 0:00:42.2]} 37... Qxf2+ {[%clk 0:00:43.8]} 38. Kh1 {[%clk
0:00:42.5]} 38... Qf7 {[%clk 0:00:41.9]} 39. a5 {[%clk 0:00:39.9]} 39... Qc7
{[%clk 0:00:38.8]} 40. Qe6+ {[%clk 0:00:34.5]} 40... Kg7 {[%clk 0:00:38.1]} 41.
Kg1 {[%clk 0:00:31.6]} 41... Qc1+ {[%clk 0:00:36.8]} 42. Kf2 {[%clk 0:00:28.1]}
42... Qxb2+ {[%clk 0:00:36.1]} 43. Ke3 {[%clk 0:00:27.5]} 43... Qc3+ {[%clk
0:00:34.4]} 44. Ke4 {[%clk 0:00:25.3]} 44... Qc6+ {[%clk 0:00:34.1]} 45. Qxc6
{[%clk 0:00:24.5]} 45... bxc6 {[%clk 0:00:33.9]} 46. Kd4 {[%clk 0:00:25.4]}
46... h6 {[%clk 0:00:33.9]} 47. Kc5 {[%clk 0:00:25.7]} 47... g5 {[%clk
0:00:34.2]} 48. hxg5 {[%clk 0:00:26.1]} 48... hxg5 {[%clk 0:00:34.6]} 49. Kb6
{[%clk 0:00:26.8]} 49... g4 {[%clk 0:00:35]} 50. Kxa6 {[%clk 0:00:27.4]} 50...
g3 {[%clk 0:00:35.4]} 51. Kb7 {[%clk 0:00:28]} 51... g2 {[%clk 0:00:35.7]} 0-1

[Event "Betsys MČR v online bleskovém šachu 2021"]
[Site "Chess.com"]
[Date "2021.04.17"]
[Round "6"]
[White "petiva3"]
[Black "dnovotny"]
[Result "1-0"]
[WhiteElo "1406"]
[BlackElo "1739"]
[TimeControl "180+1"]
[EndTime "9:57:28 PDT"]
[Termination "Uživatel petiva3 zvítězil na čas"]

1. e4 {[%clk 0:03:00.9]} 1... c5 {[%clk 0:02:57.3]} 2. Ne2 {[%clk 0:03:00.4]}
2... Nc6 {[%clk 0:02:50.2]} 3. g3 {[%clk 0:03:00.3]} 3... Nf6 {[%clk 0:02:34.1]}
4. Bg2 {[%clk 0:03:00]} 4... d5 {[%clk 0:02:30.5]} 5. exd5 {[%clk 0:02:58.1]}
5... Nxd5 {[%clk 0:02:31.4]} 6. O-O {[%clk 0:02:58.2]} 6... g6 {[%clk
0:02:06.5]} 7. c3 {[%clk 0:02:57.6]} 7... Bg7 {[%clk 0:02:05.4]} 8. d4 {[%clk
0:02:55.4]} 8... cxd4 {[%clk 0:02:02.7]} 9. cxd4 {[%clk 0:02:55.5]} 9... Bg4
{[%clk 0:01:47.5]} 10. Nbc3 {[%clk 0:02:37.7]} 10... Nxd4 {[%clk 0:01:15.4]} 11.
Nxd5 {[%clk 0:01:53.9]} 11... Nxe2+ {[%clk 0:00:57.7]} 12. Kh1 {[%clk
0:01:27.1]} 12... Nxg3+ {[%clk 0:00:57.4]} 13. hxg3 {[%clk 0:01:25.2]} 13...
Bxd1 {[%clk 0:00:58.3]} 14. Rxd1 {[%clk 0:01:24.9]} 14... Qa5 {[%clk 0:00:26.9]}
15. Bf4 {[%clk 0:01:06.9]} 15... O-O {[%clk 0:00:15.3]} 16. Nxe7+ {[%clk
0:01:00.7]} 16... Kh8 {[%clk 0:00:14.2]} 17. Rd5 {[%clk 0:00:58]} 17... Qa4
{[%clk 0:00:11]} 18. Bf3 {[%clk 0:00:52.1]} 18... Rfd8 {[%clk 0:00:09.5]} 19.
Rxd8+ {[%clk 0:00:44.2]} 19... Rxd8 {[%clk 0:00:10.4]} 20. Kg2 {[%clk
0:00:44.3]} 20... Qb4 {[%clk 0:00:10.3]} 21. Nd5 {[%clk 0:00:31.2]} 21... Qxb2
{[%clk 0:00:10.5]} 22. Re1 {[%clk 0:00:29.6]} 22... Qxa2 {[%clk 0:00:07.8]} 23.
Nc7 {[%clk 0:00:24.8]} 23... Qa5 {[%clk 0:00:02.7]} 24. Re7 {[%clk 0:00:19.1]}
24... h5 {[%clk 0:00:02.7]} 25. Rxf7 {[%clk 0:00:19.1]} 25... Qa2 {[%clk
0:00:01.6]} 26. Re7 {[%clk 0:00:18.2]} 26... Qb3 {[%clk 0:00:01.4]} 27. Bg5
{[%clk 0:00:16]} 27... Qa3 {[%clk 0:00:01.5]} 28. Re3 {[%clk 0:00:13]} 28... Rd7
{[%clk 0:00:01.2]} 29. Rxa3 {[%clk 0:00:11.7]} 1-0

[Event "Betsys MČR v online bleskovém šachu 2021"]
[Site "Chess.com"]
[Date "2021.04.17"]
[Round "6"]
[White "Listro33"]
[Black "kominekmart"]
[Result "1-0"]
[WhiteElo "1863"]
[BlackElo "1573"]
[TimeControl "180+1"]
[EndTime "9:57:31 PDT"]
[Termination "Uživatel Listro33 zvítězil matem"]

1. d4 {[%clk 0:01:10.3]} 1... d6 {[%clk 0:02:58.7]} 2. Bf4 {[%clk 0:01:09.1]}
2... g6 {[%clk 0:02:56.4]} 3. Nf3 {[%clk 0:01:08.5]} 3... Bg7 {[%clk 0:02:56]}
4. e3 {[%clk 0:01:09.1]} 4... Nf6 {[%clk 0:02:52.5]} 5. Be2 {[%clk 0:01:09.6]}
5... O-O {[%clk 0:02:51.8]} 6. O-O {[%clk 0:01:10]} 6... d5 {[%clk 0:02:49.1]}
7. h3 {[%clk 0:01:09.2]} 7... c6 {[%clk 0:02:48.6]} 8. c3 {[%clk 0:01:09]} 8...
Nh5 {[%clk 0:02:48]} 9. Bh2 {[%clk 0:01:07.7]} 9... Nd7 {[%clk 0:02:47]} 10.
Nbd2 {[%clk 0:01:06.3]} 10... b5 {[%clk 0:02:46.6]} 11. a4 {[%clk 0:01:05.4]}
11... Ba6 {[%clk 0:02:31.4]} 12. axb5 {[%clk 0:01:03.6]} 12... Bxb5 {[%clk
0:02:30.9]} 13. Bxb5 {[%clk 0:01:03.3]} 13... cxb5 {[%clk 0:02:30.6]} 14. Qb3
{[%clk 0:01:02.2]} 14... Nhf6 {[%clk 0:02:10.9]} 15. Qxb5 {[%clk 0:01:01]} 15...
Rb8 {[%clk 0:02:10.1]} 16. Bxb8 {[%clk 0:00:58.5]} 16... Nxb8 {[%clk 0:02:08.6]}
17. Rxa7 {[%clk 0:00:55.9]} 17... Nbd7 {[%clk 0:02:05.9]} 18. Rfa1 {[%clk
0:00:48.6]} 18... e6 {[%clk 0:02:04.3]} 19. Nb3 {[%clk 0:00:27.2]} 19... Qe7
{[%clk 0:02:01.6]} 20. Ne5 {[%clk 0:00:25.6]} 20... Rb8 {[%clk 0:01:59.8]} 21.
Qxb8+ {[%clk 0:00:19.7]} 21... Nxb8 {[%clk 0:01:56.9]} 22. Rxe7 {[%clk
0:00:19.6]} 22... Bf8 {[%clk 0:01:53]} 23. Rb7 {[%clk 0:00:19.1]} 23... Nfd7
{[%clk 0:01:13]} 24. Nxd7 {[%clk 0:00:16.7]} 24... Nxd7 {[%clk 0:01:06.7]} 25.
Rxd7 {[%clk 0:00:17.6]} 25... Bh6 {[%clk 0:01:04.7]} 26. Ra8+ {[%clk 0:00:15.8]}
26... Kg7 {[%clk 0:01:04.3]} 27. Raa7 {[%clk 0:00:16.3]} 27... Kf6 {[%clk
0:01:03.4]} 28. Rxf7+ {[%clk 0:00:15.7]} 28... Kg5 {[%clk 0:01:03.2]} 29. Nc5
{[%clk 0:00:15.2]} 29... Kh4 {[%clk 0:01:00.1]} 30. Kh2 {[%clk 0:00:13.7]} 30...
Kg5 {[%clk 0:00:55.1]} 31. Nxe6+ {[%clk 0:00:12.7]} 31... Kh5 {[%clk 0:00:53.8]}
32. g4+ {[%clk 0:00:07.1]} 32... Kh4 {[%clk 0:00:48.6]} 33. Nf4 {[%clk
0:00:06.8]} 33... Bxf4+ {[%clk 0:00:17.6]} 34. Rxf4 {[%clk 0:00:07.7]} 34... g5
{[%clk 0:00:15.4]} 35. Rxh7# {[%clk 0:00:05.9]} 1-0

[Event "Betsys MČR v online bleskovém šachu 2021"]
[Site "Chess.com"]
[Date "2021.04.17"]
[Round "6"]
[White "hever99"]
[Black "svobodan"]
[Result "1-0"]
[WhiteElo "2061"]
[BlackElo "1654"]
[TimeControl "180+1"]
[EndTime "9:57:32 PDT"]
[Termination "Uživatel hever99 zvítězil na čas"]

1. e4 {[%clk 0:02:52.8]} 1... c5 {[%clk 0:02:59.6]} 2. Nc3 {[%clk 0:02:51.3]}
2... d6 {[%clk 0:02:59.3]} 3. g3 {[%clk 0:02:51.1]} 3... g6 {[%clk 0:02:58.8]}
4. Bg2 {[%clk 0:02:50.5]} 4... Bg7 {[%clk 0:02:58.6]} 5. d3 {[%clk 0:02:47.4]}
5... Nc6 {[%clk 0:02:57.1]} 6. Be3 {[%clk 0:02:36.3]} 6... e6 {[%clk 0:02:55.3]}
7. Qd2 {[%clk 0:02:30.8]} 7... Nge7 {[%clk 0:02:54.5]} 8. Bh6 {[%clk 0:02:20.8]}
8... O-O {[%clk 0:02:44.3]} 9. h4 {[%clk 0:02:11.3]} 9... a6 {[%clk 0:02:43.6]}
10. h5 {[%clk 0:02:09.9]} 10... b5 {[%clk 0:02:29.4]} 11. Bxg7 {[%clk
0:02:03.4]} 11... Kxg7 {[%clk 0:02:22.2]} 12. hxg6 {[%clk 0:02:01.8]} 12... fxg6
{[%clk 0:02:19.1]} 13. Qh6+ {[%clk 0:01:58.8]} 13... Kf7 {[%clk 0:02:18.9]} 14.
Qxh7+ {[%clk 0:01:32.5]} 14... Ke8 {[%clk 0:02:18.8]} 15. Nf3 {[%clk 0:01:29.7]}
15... Bb7 {[%clk 0:01:58.9]} 16. Nh4 {[%clk 0:01:02.2]} 16... Nd4 {[%clk
0:01:49.3]} 17. O-O-O {[%clk 0:00:38.7]} 17... b4 {[%clk 0:01:32.6]} 18. Nxg6
{[%clk 0:00:29.4]} 18... Rxf2 {[%clk 0:00:52.1]} 19. Rd2 {[%clk 0:00:20.5]}
19... Rxd2 {[%clk 0:00:42.9]} 20. Kxd2 {[%clk 0:00:20.7]} 20... bxc3+ {[%clk
0:00:43.3]} 21. bxc3 {[%clk 0:00:20.8]} 21... Ndc6 {[%clk 0:00:18]} 22. Qg7
{[%clk 0:00:18.4]} 22... Kd7 {[%clk 0:00:12.4]} 23. Rh8 {[%clk 0:00:15.9]} 23...
Qc7 {[%clk 0:00:10.6]} 24. Nf8+ {[%clk 0:00:11.5]} 24... Kc8 {[%clk 0:00:04.9]}
25. Nxe6+ {[%clk 0:00:11.3]} 25... Kd7 {[%clk 0:00:03]} 26. Nxc7 {[%clk
0:00:10.8]} 26... Kxc7 {[%clk 0:00:03.7]} 27. Rxa8 {[%clk 0:00:10.1]} 27... Bxa8
{[%clk 0:00:03.9]} 28. g4 {[%clk 0:00:09.2]} 28... Bb7 {[%clk 0:00:03.8]} 29. g5
{[%clk 0:00:09.3]} 29... Bc8 {[%clk 0:00:04.4]} 30. g6 {[%clk 0:00:09.4]} 30...
Bg4 {[%clk 0:00:03.1]} 31. Qf7 {[%clk 0:00:08.3]} 1-0